bitfinex/quotes_SOLUSD_20250306
["timestamp","ask_amount","ask_price","bid_price","bid_amount"]
[1741278822169,0.03,147.66,147.62,34.86613409]
[1741278822965,0.03,147.66,147.63,0.14216157]
[1741278823273,0.03,147.66,147.6,161.3]
[1741278823475,0.03,147.66,147.61,0.14216157]
[1741278823975,0.03,147.66,147.6,34.86613409]
[1741278824167,82.03,147.66,147.59,0.033]
[1741278824847,4.0935,147.66,147.59,35.04129566]
[1741278825047,0.03,147.66,147.59,65.99124346]
[1741278825258,4.0934,147.66,147.61,0.14216157]
[1741278826072,0.03,147.66,147.61,0.14216157]
[1741278826274,0.03,147.66,147.62,0.14216157]
[1741278826776,0.03,147.66,147.59,34.89913409]
[1741278826963,0.03,147.66,147.6,0.14216157]
[1741278827165,0.03,147.66,147.6,35.00829566]
[1741278827860,0.03,147.66,147.6,65.95824346]
[1741278828172,0.03,147.66,147.62,0.14216157]
[1741278828551,0.03,147.66,147.6,172.66613409]
[1741278828776,0.03,147.66,147.6,34.86613409]
[1741278828953,0.03,147.66,147.62,0.14216157]
[1741278829374,0.03,147.66,147.62,347.00829566]
[1741278829553,0.03,147.66,147.62,377.95824346]
[1741278829760,0.03,147.66,147.62,35.00829566]
[1741278831172,0.03,147.66,147.64,0.14216157]
[1741278831476,0.03,147.66,147.65,18.79181043]
[1741278831860,0.03,147.66,147.65,0.14216157]
[1741278832781,0.03,147.66,147.65,312.14216157]
[1741278832956,0.03,147.66,147.62,34.86613409]
[1741278833679,0.03,147.66,147.6,0.033]
[1741278833877,0.03,147.66,147.6,0.17516157]
[1741278834073,0.03,147.66,147.6,6.95016157]
[1741278834270,0.03,147.66,147.6,6.808]
[1741278834661,0.03,147.66,147.61,0.14216157]
[1741278834866,0.03,147.66,147.61,31.09210937]
[1741278835165,0.03,147.66,147.63,0.14216157]
[1741278835972,0.03,147.66,147.63,312.14216157]
[1741278837275,0.03,147.66,147.6,0.033]
[1741278838388,82.0,147.65,147.6,0.033]
[1741278838895,100.64964886,147.64,147.6,0.033]
[1741278839094,4.0644,147.62,147.6,0.033]
[1741278840393,4.0642,147.63,147.6,0.033]
[1741278840593,4.0636,147.65,147.6,0.033]
[1741278841290,4.0933,147.66,147.6,0.033]
[1741278841495,86.0933,147.66,147.6,0.033]
[1741278841703,18.64964886,147.64,147.6,0.033]
[1741278841877,18.64964886,147.62,147.59,0.033]
[1741278842202,82.0,147.61,147.59,0.0001]
[1741278842398,18.64964886,147.6,147.52,34.86613409]
[1741278842621,82.0,147.59,147.48,34.86613409]
[1741278842902,82.0,147.58,147.48,34.86613409]
[1741278843088,100.64964886,147.57,147.46,34.86613409]
[1741278843276,14.2333,147.54,147.46,34.86613409]
[1741278843600,82.0,147.53,147.45,0.033]
[1741278843782,82.0,147.53,147.46,312.0]
[1741278844299,82.0,147.52,147.46,312.0]
[1741278844476,82.0,147.52,147.45,0.033]
[1741278844676,82.0,147.51,147.45,0.033]
[1741278844872,82.0,147.5,147.45,0.033]
[1741278845089,18.64964886,147.52,147.45,0.033]
[1741278845600,14.2363,147.51,147.47,0.033]
[1741278845802,108.79904886,147.5,147.45,0.033]
[1741278846002,18.64964886,147.48,147.45,0.033]
[1741278846178,82.0,147.47,147.44,0.033]
[1741278846376,100.64964886,147.46,147.38,0.033]
[1741278846581,82.0,147.45,147.38,0.033]
[1741278847197,82.0,147.48,147.39,49.74175823]
[1741278847398,96.2392,147.48,147.42,0.14216157]
[1741278847893,86.0684,147.48,147.42,0.14216157]
[1741278848082,4.0681,147.49,147.42,0.14216157]
[1741278848296,4.0681,147.49,147.43,0.14216157]
[1741278848474,14.2382,147.49,147.43,0.14216157]
[1741278848675,96.2382,147.49,147.39,34.86613409]
[1741278848882,18.64964886,147.47,147.38,0.033]
[1741278849392,14.242,147.45,147.38,0.033]
[1741278849597,4.0683,147.48,147.38,31.12510937]
[1741278849774,4.0683,147.48,147.4,31.09210937]
[1741278849978,14.2391,147.48,147.4,0.14216157]
[1741278850281,14.2391,147.48,147.39,0.14216157]
[1741278850482,4.0683,147.48,147.39,0.14216157]
[1741278850705,4.0683,147.48,147.39,31.09210937]
[1741278851011,4.0681,147.49,147.41,0.14216157]
[1741278851198,12.2172,147.5,147.44,0.14216157]
[1741278851387,94.2172,147.5,147.44,0.14216157]
[1741278851583,84.0896,147.5,147.44,6.92436157]
[1741278851783,2.1517,147.56,147.44,72.74044346]
[1741278851991,2.1517,147.56,147.52,0.14216157]
[1741278852198,2.1517,147.62,147.55,0.14216157]
[1741278852397,2.1517,147.62,147.57,0.14216157]
[1741278852597,10.23869311,147.64,147.57,31.09210937]
[1741278852900,10.23869311,147.64,147.57,0.14216157]
[1741278853100,18.64964886,147.63,147.5,211.51608189]
[1741278853298,4.0954,147.59,147.51,0.14216157]
[1741278853497,0.03,147.59,147.51,6.92126157]
[1741278853702,0.03,147.59,147.51,0.14216157]
[1741278854406,2.2063,147.56,147.46,7.9]
[1741278854592,82.0,147.55,147.47,312.0]
[1741278854793,82.0,147.54,147.48,0.14216157]
[1741278855710,14.2343,147.53,147.48,0.14216157]
[1741278856012,4.0669,147.53,147.48,0.14216157]
[1741278856308,96.2334,147.54,147.47,312.0]
[1741278856510,82.0,147.53,147.43,34.86613409]
[1741278856701,82.0,147.52,147.43,0.14216157]
[1741278857097,82.0,147.52,147.43,50.47604474]
[1741278857414,82.0,147.52,147.45,70.47604474]
[1741278857713,86.0672,147.52,147.45,20.14216157]
[1741278857906,16.4697,147.56,147.47,0.17516157]
[1741278857907,82.0,147.55,147.47,0.17516157]
[1741278858105,0.03,147.59,147.47,0.17516157]
[1741278858106,82.0,147.58,147.52,50.47604474]
[1741278858307,0.03,147.59,147.56,50.47604474]
[1741278858510,0.03,147.59,147.58,50.47604474]
[1741278858898,0.03,147.59,147.58,0.14216157]
[1741278859493,0.03,147.59,147.58,369.25194474]
[1741278859692,0.03,147.59,147.58,362.47604474]
[1741278859899,0.03,147.59,147.58,560.56772769]
[1741278860210,0.03,147.59,147.58,248.56772769]
[1741278860396,0.03,147.59,147.58,241.79182769]
[1741278860596,0.03,147.59,147.58,35.00829566]
[1741278861188,0.03,147.59,147.58,85.34217883]
[1741278861388,0.03,147.59,147.58,35.00829566]
[1741278861631,0.03,147.59,147.58,85.34217883]
[1741278861928,0.03,147.59,147.58,105.41435651]
[1741278862216,0.03,147.59,147.58,103.99182769]
[1741278862434,0.03,147.59,147.58,110.76772769]
[1741278862726,0.03,147.59,147.58,191.45794452]
[1741278862930,0.03,147.59,147.58,223.14217883]
[1741278863093,0.03,147.59,147.58,535.14217883]
[1741278863297,0.03,147.59,147.58,312.14216157]
[1741278864414,0.03,147.59,147.56,50.33388317]
[1741278864793,0.03,147.59,147.57,69.1256936]
[1741278864992,0.03,147.59,147.57,0.14216157]
[1741278865197,0.03,147.59,147.56,0.14216157]
[1741278865599,0.03,147.59,147.56,50.47604474]
[1741278865801,0.03,147.59,147.58,0.14216157]
[1741278866400,0.03,147.59,147.56,0.14216157]
[1741278867220,0.03,147.59,147.56,69.1256936]
[1741278867428,0.03,147.59,147.58,362.47604474]
[1741278867733,0.03,147.59,147.58,422.76772769]
[1741278867904,0.03,147.59,147.58,110.76772769]
[1741278868227,0.03,147.59,147.58,53.65794452]
[1741278868395,0.03,147.59,147.58,110.76772769]
[1741278869524,0.03,147.59,147.53,34.86613409]
[1741278870031,0.03,147.59,147.57,50.33388317]
[1741278870328,0.03,147.59,147.54,34.86613409]
[1741278870831,0.03,147.59,147.55,50.47604474]
[1741278871012,0.03,147.59,147.56,0.14216157]
[1741278871335,0.03,147.59,147.52,137.8]
[1741278871498,0.03,147.59,147.53,0.14216157]
[1741278872197,82.0,147.58,147.49,172.66613409]
[1741278872417,84.1786,147.57,147.49,34.86613409]
[1741278872634,18.64964886,147.56,147.49,34.86613409]
[1741278872814,92.0786,147.57,147.49,34.86613409]
[1741278872994,84.1786,147.57,147.49,85.20001726]
[1741278873197,2.1786,147.57,147.52,50.33388317]
[1741278873448,2.1786,147.57,147.53,0.14216157]
[1741278873724,4.0661,147.56,147.49,34.86613409]
[1741278873905,6.2445,147.57,147.5,0.14216157]
[1741278874098,2.1786,147.57,147.5,53.65794452]
[1741278874300,0.03,147.59,147.54,0.14216157]
[1741278874513,0.03,147.59,147.52,312.0]
[1741278874514,82.0,147.58,147.52,312.0]
[1741278874710,4.0954,147.59,147.47,42.83913409]
[1741278874711,100.64964886,147.57,147.47,0.033]
[1741278874911,82.0,147.57,147.48,0.14216157]
[1741278875130,100.64964886,147.56,147.47,0.033]
[1741278875315,82.0,147.55,147.47,0.033]
[1741278875805,4.0666,147.54,147.47,0.033]
[1741278876008,96.2333,147.54,147.47,0.033]
[1741278876442,82.0,147.54,147.47,0.033]
[1741278876608,86.0656,147.58,147.48,50.47604474]
[1741278876807,86.0656,147.58,147.5,0.14216157]
[1741278877013,96.2295,147.58,147.5,0.14216157]
[1741278877357,96.2295,147.58,147.47,0.033]
[1741278877358,82.0,147.57,147.47,0.17516157]
[1741278877557,82.0,147.57,147.5,0.14216157]
[1741278877760,0.03,147.59,147.53,6.92026157]
[1741278878059,0.03,147.59,147.58,50.47604474]
[1741278878226,0.03,147.59,147.58,85.34217883]
[1741278878423,0.03,147.59,147.58,35.00829566]
[1741278878934,0.03,147.59,147.58,0.14216157]
[1741278879135,0.03,147.59,147.52,18.64964886]
[1741278879339,0.03,147.59,147.55,0.14216157]
[1741278879635,0.03,147.59,147.57,50.47604474]
[1741278879839,0.03,147.59,147.57,0.14216157]
[1741278880417,0.03,147.59,147.56,0.14216157]
[1741278880836,0.03,147.59,147.58,0.14216157]
[1741278881042,0.03,147.59,147.58,347.00829566]
[1741278881565,0.03,147.59,147.58,241.79182769]
[1741278882639,0.03,147.59,147.55,342.00613409]
[1741278882842,0.03,147.59,147.55,204.20613409]
[1741278883031,0.03,147.59,147.55,169.34]
[1741278883238,0.03,147.59,147.52,34.86613409]
[1741278883843,0.03,147.59,147.53,0.14216157]
[1741278884061,0.03,147.59,147.53,18.79181043]
[1741278884517,0.03,147.59,147.54,312.0]
[1741278884719,0.03,147.59,147.55,0.14216157]
[1741278884946,0.03,147.59,147.55,103.99182769]
[1741278885161,0.03,147.59,147.57,0.14216157]
[1741278885654,0.03,147.59,147.56,0.14216157]
[1741278886237,0.03,147.59,147.55,34.86613409]
[1741278886431,0.03,147.59,147.52,34.86613409]
[1741278886643,0.03,147.59,147.53,0.14216157]
[1741278887246,0.03,147.59,147.53,50.47604474]
[1741278887436,0.03,147.59,147.57,0.14216157]
[1741278887637,0.03,147.59,147.57,35.00829566]
[1741278888128,0.03,147.59,147.58,312.14216157]
[1741278888540,0.03,147.59,147.58,0.14216157]
[1741278889128,0.03,147.59,147.56,0.14216157]
[1741278889322,0.03,147.59,147.5,172.66613409]
[1741278889635,82.0,147.58,147.5,34.86613409]
[1741278890046,14.2304,147.57,147.51,0.14216157]
[1741278890444,14.2304,147.57,147.47,206.81653203]
[1741278890445,84.1401,147.56,147.47,0.033]
[1741278890628,82.0,147.55,147.47,0.033]
[1741278890840,100.64964886,147.54,147.47,0.033]
[1741278891138,82.0,147.54,147.47,0.033]
[1741278892539,82.0,147.54,147.47,0.17516157]
[1741278893076,2.1401,147.56,147.49,0.14216157]
[1741278893577,2.1401,147.56,147.48,0.14216157]
[1741278893743,6.2062,147.56,147.48,0.14216157]
[1741278894863,106.85584886,147.56,147.48,0.14216157]
[1741278895062,18.64964886,147.54,147.47,0.033]
[1741278895471,18.64964886,147.52,147.47,0.033]
[1741278895643,18.64964886,147.5,147.47,0.033]
[1741278896049,82.0,147.51,147.47,0.033]
[1741278896050,86.0676,147.51,147.47,0.033]
[1741278896258,18.64964886,147.5,147.47,0.033]
[1741278896460,82.0,147.51,147.47,0.033]
[1741278897570,82.0,147.54,147.47,0.033]
[1741278897745,86.0667,147.54,147.47,0.033]
[1741278898141,86.0667,147.54,147.48,0.14216157]
[1741278898764,84.1401,147.56,147.48,0.14216157]
[1741278898954,84.1401,147.56,147.5,0.14216157]
[1741278899353,88.2064,147.56,147.5,0.14216157]
[1741278899663,84.1401,147.56,147.49,0.14216157]
[1741278899970,2.1401,147.56,147.49,103.99182769]
[1741278900173,2.1401,147.56,147.49,85.34217883]
[1741278900476,82.03,147.59,147.51,0.14216157]
[1741278900774,86.0953,147.59,147.51,0.14216157]
[1741278900939,82.03,147.59,147.51,0.14216157]
[1741278901142,0.03,147.59,147.51,103.99182769]
[1741278901379,0.03,147.59,147.53,0.14216157]
[1741278901679,0.03,147.59,147.58,312.14216157]
[1741278901856,0.03,147.59,147.58,562.05615083]
[1741278902170,0.03,147.66,147.62,20.14216157]
[1741278902346,0.03,147.66,147.64,50.47604474]
[1741278902540,0.03,147.66,147.64,0.14216157]
[1741278902747,0.03,147.66,147.59,0.14216157]
[1741278903476,0.03,147.66,147.58,0.14216157]
[1741278903849,0.03,147.66,147.58,50.47604474]
[1741278904050,0.03,147.66,147.58,0.14216157]
[1741278905268,100.64964886,147.65,147.54,42.84613409]
[1741278905474,2.089,147.62,147.51,172.66613409]
[1741278905650,100.64964886,147.61,147.49,223.00001726]
[1741278905981,100.64964886,147.61,147.5,0.14216157]
[1741278906282,18.64964886,147.59,147.49,172.66613409]
[1741278906497,18.64964886,147.57,147.48,7.98]
[1741278906797,18.64964886,147.57,147.47,196.31913409]
[1741278906798,18.64964886,147.55,147.47,0.033]
[1741278906957,100.64964886,147.55,147.47,0.033]
[1741278907360,18.64964886,147.53,147.47,0.033]
[1741278907671,82.0,147.54,147.47,0.033]
[1741278907856,82.0,147.57,147.47,50.50904474]
[1741278908058,4.0644,147.63,147.54,0.14216157]
[1741278908257,82.0,147.64,147.54,312.14216157]
[1741278908458,6.1535,147.62,147.54,312.14216157]
[1741278908658,6.1535,147.62,147.5,50.47604474]
[1741278908895,18.64964886,147.6,147.5,0.14216157]
[1741278909098,18.64964886,147.6,147.49,34.86613409]
[1741278909099,18.64964886,147.58,147.48,7.96]
[1741278909389,18.64964886,147.56,147.47,0.033]
[1741278909589,18.64964886,147.54,147.47,0.033]
[1741278909794,18.64964886,147.52,147.47,0.033]
[1741278910092,20.73294886,147.5,147.47,0.033]
[1741278910391,22.71794886,147.48,147.47,0.033]
[1741278910701,18.64964886,147.48,147.47,0.033]
[1741278911165,18.64964886,147.48,147.44,0.033]
[1741278911369,82.0,147.47,147.44,0.033]
[1741278911589,18.64964886,147.46,147.44,0.033]
[1741278912257,18.64964886,147.44,147.38,312.033]
[1741278912465,18.64964886,147.44,147.38,0.033]
[1741278912691,18.64964886,147.42,147.38,0.033]
[1741278912858,100.64964886,147.42,147.38,0.033]
[1741278914388,22.72014886,147.4,147.38,0.033]
[1741278914599,82.0,147.39,147.38,0.033]
[1741278914891,7.98,147.43,147.38,0.033]
[1741278915295,18.64964886,147.42,147.38,0.033]
[1741278915690,18.64964886,147.45,147.38,0.033]
[1741278915876,82.0,147.46,147.38,0.033]
[1741278916081,6.1072,147.47,147.38,0.17516157]
[1741278916380,6.1072,147.47,147.38,6.96006157]
[1741278916577,100.64964886,147.49,147.38,14.7779]
[1741278916893,82.0,147.52,147.43,0.14216157]
[1741278917080,84.1681,147.56,147.46,0.14216157]
[1741278917282,88.2342,147.56,147.46,50.47604474]
[1741278917479,88.2342,147.56,147.4,0.28432314]
[1741278917480,18.64964886,147.54,147.41,50.33388317]
[1741278917676,82.0,147.53,147.42,0.14216157]
[1741278918009,82.0,147.52,147.42,85.34217883]
[1741278918173,82.0,147.52,147.44,0.14216157]
[1741278918373,22.71724886,147.51,147.44,0.14216157]
[1741278918978,22.71714886,147.51,147.44,312.14216157]
[1741278919180,86.0673,147.52,147.44,318.92446157]
[1741278919384,82.0,147.52,147.44,318.92446157]
[1741278919602,82.0,147.55,147.46,0.14216157]
[1741278919781,82.0,147.54,147.46,0.14216157]
[1741278920478,82.0,147.54,147.47,6.781]
[1741278921002,82.0,147.54,147.46,0.14216157]
[1741278921003,18.67964886,147.53,147.46,0.14216157]
[1741278921601,18.64964886,147.51,147.42,172.66613409]
[1741278921799,82.0,147.5,147.42,34.86613409]
[1741278921978,82.0,147.5,147.42,41.64913409]
[1741278922178,82.0,147.5,147.43,0.14216157]
[1741278922594,18.64964886,147.48,147.41,0.033]
[1741278922799,18.64964886,147.46,147.41,0.033]
[1741278923181,82.0,147.45,147.41,0.033]
[1741278923384,82.0,147.44,147.41,0.033]
[1741278924308,82.0,147.51,147.42,0.14216157]
[1741278924492,82.0,147.51,147.44,0.14216157]
[1741278925003,86.0675,147.51,147.42,34.86613409]
[1741278925186,86.0675,147.51,147.43,0.14216157]
[1741278925709,82.0,147.51,147.44,312.0]
[1741278926000,86.0675,147.51,147.44,312.0]
[1741278926207,82.0,147.51,147.44,312.0]
[1741278926819,86.0675,147.51,147.44,318.7823]
[1741278927001,86.0675,147.51,147.43,6.92486157]
[1741278927180,100.64964886,147.5,147.41,0.033]
[1741278927708,82.0,147.49,147.41,0.033]
[1741278927905,18.64964886,147.48,147.41,0.033]
[1741278928088,82.0,147.47,147.41,0.033]
[1741278928408,14.2363,147.51,147.41,0.033]
[1741278928409,82.0,147.5,147.41,0.033]
[1741278928609,82.0,147.5,147.42,0.14216157]
[1741278929103,86.0678,147.5,147.42,35.00829566]
[1741278929910,4.097,147.53,147.47,312.0]
[1741278930117,86.097,147.53,147.47,312.0]
[1741278930480,100.64964886,147.52,147.47,312.0]
[1741278930695,14.2363,147.51,147.47,312.0]
[1741278931026,14.2363,147.51,147.43,0.14216157]
[1741278931510,4.0675,147.51,147.43,0.14216157]
[1741278932396,100.64964886,147.5,147.41,0.033]
[1741278932590,4.068,147.49,147.41,0.033]
[1741278932806,14.2381,147.49,147.41,0.033]
[1741278933009,4.068,147.49,147.41,0.033]
[1741278933407,14.2381,147.49,147.41,0.033]
[1741278933996,14.2381,147.49,147.42,0.14216157]
[1741278934534,18.64964886,147.48,147.42,0.14216157]
[1741278934688,14.2401,147.47,147.41,0.033]
[1741278934885,4.0686,147.47,147.41,0.033]
[1741278935239,14.2401,147.47,147.41,0.033]
[1741278935721,18.64964886,147.45,147.41,0.033]
[1741278935921,82.0,147.44,147.41,0.033]
[1741278936223,34.5832,147.47,147.41,0.033]
[1741278936224,4.0686,147.47,147.41,0.17516157]
[1741278936388,4.0686,147.47,147.41,0.033]
[1741278936599,10.171,147.48,147.41,0.033]
[1741278936825,14.2393,147.48,147.41,0.033]
[1741278937433,32.88894886,147.48,147.41,0.033]
[1741278937604,18.64964886,147.47,147.41,0.033]
[1741278937930,14.2393,147.48,147.41,0.033]
[1741278938235,18.64964886,147.47,147.41,0.033]
[1741278938431,14.2393,147.48,147.41,0.033]
[1741278939441,4.0683,147.48,147.42,0.14216157]
[1741278939637,14.2391,147.48,147.42,0.14216157]
[1741278939956,14.2391,147.48,147.41,0.033]
[1741278940263,18.64964886,147.47,147.41,0.033]
[1741278940603,4.0689,147.46,147.41,0.033]
[1741278940805,14.2411,147.46,147.41,0.033]
[1741278941007,82.0,147.45,147.41,0.033]
[1741278941229,100.64964886,147.44,147.41,0.033]
[1741278941637,100.64964886,147.44,147.41,0.0001]
[1741278942007,18.64964886,147.42,147.41,0.0001]
[1741278942431,2.075,147.44,147.41,0.0001]
[1741278942632,14.2411,147.46,147.41,0.0001]
[1741278942938,82.0,147.45,147.41,0.0001]
[1741278944024,100.64964886,147.44,147.41,0.0001]
[1741278944652,18.64964886,147.42,147.41,0.0001]
[1741278944949,18.64964886,147.42,147.38,0.033]
[1741278944950,18.64964886,147.4,147.38,0.0001]
[1741278945129,102.64964886,147.39,147.3,0.033]
[1741278945450,102.85664886,147.38,147.3,0.033]
[1741278945627,18.64964886,147.36,147.3,0.033]
[1741278945816,26.50964886,147.36,147.3,0.033]
[1741278946724,18.64964886,147.34,147.3,0.033]
[1741278946928,100.64964886,147.34,147.3,0.033]
[1741278948631,18.64964886,147.32,147.29,0.0001]
[1741278948850,18.64964886,147.3,147.29,0.0001]
[1741278949149,4.073,147.31,147.29,0.0001]
[1741278949717,4.0727,147.32,147.29,0.0001]
[1741278950520,110.82984886,147.35,147.29,0.0001]
[1741278950521,82.0,147.35,147.29,0.0001]
[1741278950725,14.2497,147.37,147.29,0.14226157]
[1741278950946,92.087,147.38,147.31,0.14216157]
[1741278950947,86.0711,147.38,147.31,0.14216157]
[1741278951149,7.88,147.42,147.31,103.99182769]
[1741278951362,14.245,147.42,147.31,172.80829566]
[1741278951567,14.245,147.42,147.35,312.0]
[1741278951775,82.0,147.41,147.35,312.0]
[1741278951973,18.64964886,147.4,147.3,0.14216157]
[1741278952870,18.64964886,147.4,147.29,0.0001]
[1741278952871,18.64964886,147.38,147.29,0.0001]
[1741278953048,18.64964886,147.36,147.29,0.0001]
[1741278953249,82.0,147.35,147.29,0.0001]
[1741278953877,18.64964886,147.34,147.29,0.0001]
[1741278954171,82.0,147.35,147.29,0.0001]
[1741278954843,4.0722,147.34,147.3,0.14216157]
[1741278955049,4.0719,147.35,147.3,0.14216157]
[1741278956386,14.2517,147.35,147.3,0.14216157]
[1741278956856,14.2536,147.33,147.29,0.0001]
[1741278957058,82.0,147.32,147.29,0.0001]
[1741278957281,82.0,147.31,147.29,0.0001]
[1741278958379,82.0,147.3,147.28,0.0001]
[1741278958554,100.64964886,147.32,147.28,0.0001]
[1741278958953,14.2556,147.31,147.28,0.0001]
[1741278959153,18.64964886,147.3,147.28,0.0001]
[1741278959370,14.2556,147.31,147.28,0.0001]
[1741278959876,4.073,147.31,147.28,0.0001]
[1741278960175,10.181,147.34,147.28,0.0001]
[1741278960387,116.616,147.33,147.28,0.0001]
[1741278960745,18.64964886,147.32,147.28,0.0001]
[1741278961059,14.2556,147.31,147.28,0.0001]
[1741278961265,100.64964886,147.3,147.28,0.0001]
[1741278961571,82.0,147.3,147.28,0.0001]
[1741278961982,18.64964886,147.29,147.26,0.033]
[1741278962273,18.64964886,147.27,147.26,0.0001]
[1741278962490,18.64964886,147.29,147.26,0.0001]
[1741278962850,34.6208,147.31,147.24,0.033]
[1741278962851,26.95704886,147.3,147.24,0.0001]
[1741278963052,18.64964886,147.27,147.24,0.0001]
[1741278963278,18.64964886,147.25,147.24,0.0001]
[1741278964063,2.1936,147.22,147.14,0.033]
[1741278964381,18.64964886,147.21,147.14,0.033]
[1741278964577,7.94,147.2,147.14,0.033]
[1741278964760,18.64964886,147.19,147.14,0.033]
[1741278964959,14.2682,147.18,147.14,0.033]
[1741278965262,18.64964886,147.17,147.06,0.033]
[1741278965459,18.64964886,147.15,147.06,0.033]
[1741278965652,18.64964886,147.13,147.06,0.033]
[1741278966278,22.2082,147.18,147.06,57.16648317]
[1741278966579,100.64964886,147.17,147.07,0.14216157]
[1741278966777,100.64964886,147.17,147.09,0.14216157]
[1741278966778,82.0,147.17,147.09,0.14216157]
[1741278966987,4.0769,147.17,147.12,0.14216157]
[1741278967165,4.076,147.2,147.12,85.34217883]
[1741278967476,4.0752,147.23,147.16,0.14216157]
[1741278967661,7.94,147.26,147.16,85.34217883]
[1741278967861,82.0,147.27,147.18,50.47604474]
[1741278968063,86.0742,147.27,147.17,68.98353203]
[1741278968361,4.0742,147.27,147.18,50.47604474]
[1741278968665,4.0742,147.27,147.18,0.14216157]
[1741278968987,20.86494886,147.29,147.18,0.14216157]
[1741278968988,4.0738,147.28,147.18,6.93646157]
[1741278969169,2.2153,147.29,147.18,58.69675286]
[1741278969367,2.2153,147.29,147.2,0.14216157]
[1741278969368,6.2889,147.29,147.2,0.14216157]
[1741278969961,6.2888,147.29,147.2,0.14216157]
[1741278970162,89.97,147.3,147.2,86.76822958]
[1741278970358,100.64964886,147.29,147.22,312.0]
[1741278970565,82.0,147.28,147.17,69.1256936]
[1741278970782,82.0,147.28,147.2,0.14216157]
[1741278970985,22.2265,147.3,147.2,0.14216157]
[1741278971296,22.2265,147.3,147.22,0.14216157]
[1741278971297,0.03,147.3,147.22,0.14216157]
[1741278971465,0.03,147.3,147.27,0.14216157]
[1741278972084,0.03,147.3,147.24,0.14216157]
[1741278972804,0.03,147.3,147.22,69.1256936]
[1741278973087,0.03,147.3,147.26,0.14216157]
[1741278973262,0.03,147.3,147.27,0.14216157]
[1741278973665,0.03,147.3,147.29,312.0]
[1741278973877,0.03,147.3,147.29,312.14216157]
[1741278974097,0.03,147.3,147.29,69.1256936]
[1741278974485,0.03,147.3,147.29,18.79181043]
[1741278974685,0.03,147.3,147.29,0.14216157]
[1741278974872,0.03,147.3,147.29,69.1256936]
[1741278975071,0.03,147.3,147.29,77.34016008]
[1741278975309,0.03,147.35,147.33,18.79181043]
[1741278975487,0.03,147.35,147.34,50.47604474]
[1741278975805,0.03,147.35,147.34,214.8456936]
[1741278976499,0.03,147.35,147.34,196.19604474]
[1741278976683,0.03,147.35,147.34,145.86216157]
[1741278976877,0.03,147.35,147.34,8.06216157]
[1741278977206,0.03,147.35,147.34,312.14216157]
[1741278977978,0.03,147.35,147.34,362.47604474]
[1741278978199,0.03,147.35,147.34,518.9256936]
[1741278978999,0.03,147.35,147.34,468.59181043]
[1741278979207,0.03,147.35,147.34,518.9256936]
[1741278979415,0.03,147.35,147.34,423.06315083]
[1741278979701,0.03,147.45,147.41,50.47604474]
[1741278979910,0.03,147.45,147.41,58.35604474]
[1741278980280,0.03,147.45,147.41,8.02216157]
[1741278980481,0.03,147.45,147.41,58.35604474]
[1741278980676,0.03,147.45,147.41,8.02216157]
[1741278981701,0.03,147.45,147.36,58.17388317]
[1741278982002,0.03,147.45,147.36,180.50613409]
[1741278982308,0.03,147.45,147.37,0.14216157]
[1741278982488,0.03,147.45,147.37,69.1256936]
[1741278982687,0.03,147.45,147.39,50.47604474]
[1741278982882,0.03,147.45,147.41,0.14216157]
[1741278983093,0.03,147.45,147.44,312.14216157]
[1741278984013,0.03,147.45,147.44,560.85855083]
[1741278984201,0.03,147.49,147.48,0.14216157]